{"text_format":"1","workbook":"xlsx","n_sheets":2,"sheets":["Simulador","Calculo"],"not_rendered":{"charts":4,"images":1,"macros":0,"external_links":0,"defined_names":5,"comments":0,"pivot_tables":0},"unopened":[],"bounds":{"document_bytes":16777216,"sheet_cells":100000,"rows_first":2000,"rows_last":500,"rows_between":2000,"halvings":0,"cell_chars":16384,"cell_head_chars":4096},"cells_cut":0,"cells_raw":0,"read":"whole","date_system":"1900"}

{"sheet":"Simulador","index":0,"n_rows":33,"n_cols":12,"rows_kept":33,"cut":false,"hidden":false,"merged":[[173,1,173,2],[173,5,173,6],[1,0,1,14],[3,0,3,14]]}
[]
["CALCULADORA DE CONTRIBUIÇÃO BÁSICA"]
[null,null,null,null,null,null,null,null,null,null,null," "]
["Para calcular a rentabilidade basta preencher os campos em azul"]
[]
[]
[]
[]
[null,"Salário mensal",10000]
[null,"7 URP's em 2025",4183.2]
[null,"10 URP's em 2025",5976]
[]
[null,"Percentual de Contribuição",0.01]
[null,"Desconto em Folha",{"$f":"IF(AND(C9<=C11,C9>=C10),C9*C13,(C9-C11)*C13)","v":40.24}]
[null,"Aporte Patrocinadora",{"$f":"C14","v":40.24}]
[null," Aporte Mensal",{"$f":"C15+C14","v":80.48}]
[]
[null,"Rentabilidade Nominal Anual",0.1]
[null,"Rentabilidade Equivalente Mensal",{"$f":"((1+C18)^(1/12)-1)","v":7.9741404289037643E-3}]
[]
[null,"Simulado em",{"$f":"NOW()","v":"2025-11-03T13:47:48.750"}]
[]
[]
[]
[null,"A Contribuição Básica é voltada para os profissionais com salário de contribuição maior que 7 URPs e que tenham aderido ao plano;"]
[null,"Caso o salário seja maior que 10 URP's (R$ 5.976,00), escolha um percentual entre 1% e 11% (número inteiro). O cálculo da contribuição pode ser obtido com a fórmula: ((Salário de Contribuição - 10 URP’s) x Percentual de 1% à 11%);"]
[null,"Caso o salário seja entre 7 e 10 URP's (R$ 4.183,20 a R$ 5.976,00), será calculado 1% (número inteiro). O cálculo da contribuição pode ser obtido com a fórmula: (Salário de Contribuição X 1%);"]
[null,"O valor será descontado mensalmente em folha de pagamento. O Participante poderá alterar o percentual de contribuição durante as campanhas semestrais, atualmente em Junho e Dezembro;"]
[null,"Mensalmente a Patrocinadora efetuará a contrapartida da Contribuição Básica em 100% ;"]
[null,"A URP é reajustada anualmente em janeiro, conforme variação do INPC acumulada nos últimos 12 meses;"]
[null,"Rentabilidade simulada não é garantia de rentabilidade futura, que vai depender do perfil de investimento escolhido e do desempenho dos gestores;"]
[null,"O Benefício de Aposentadoria da Ultraprev será pago de acordo com as regras previstas em Regulamento, disponível em www.ultraprev.com.br/DocRegulamento.aspx;"]
[null,"Os valores apresentados são uma simulação e não são garantias de reserva e benefício futuro."]

{"sheet":"Calculo","index":1,"n_rows":27,"n_cols":9,"rows_kept":27,"cut":false,"hidden":true,"merged":[[14,1,14,2],[14,4,14,5]]}
[]
[]
[]
[]
[null,"Ano",1,5,10,15,20,25,30]
[null,"Patrimonio",{"$f":"FV(Simulador!$C$19,(12*Calculo!C5),(Simulador!$C$16),0,0)*-1","v":1009.2623865549875},{"$f":"FV(Simulador!$C$19,(12*Calculo!D5),(Simulador!$C$16),0,0)*-1","v":6161.6477961568607},{"$f":"FV(Simulador!$C$19,(12*Calculo!E5),(Simulador!$C$16),0,0)*-1","v":16085.043188345471},{"$f":"FV(Simulador!$C$19,(12*Calculo!F5),(Simulador!$C$16),0,0)*-1","v":32066.770701419162},{"$f":"FV(Simulador!$C$19,(12*Calculo!G5),(Simulador!$C$16),0,0)*-1","v":57805.502678499528},{"$f":"FV(Simulador!$C$19,(12*Calculo!H5),(Simulador!$C$16),0,0)*-1","v":99257.987914907266},{"$f":"FV(Simulador!$C$19,(12*Calculo!I5),(Simulador!$C$16),0,0)*-1","v":166017.62991299442}]
[]
[null,".",{"$f":"C9/I6","v":0.5}]
[null,"Participante",{"$f":"I6/2","v":83008.814956497212}]
[]
[null,".",{"$f":"C12/I6","v":0.5}]
[null,"Patrocinadora",{"$f":"I6/2","v":83008.814956497212}]
[]
[]
[null," Contribuição Básica s/ Patrocinadora",null,null," Contribuição Básica c/ Patrocinadora"]
[null,"Percentual","Valor da Contribuição Básica Mensal",null,"Percentual","Valor da Contribuição Básica Mensal"]
[null,0.01,0.01,null,0.01,{"$f":"((F$10-F$11)*E17)","v":0}]
[null,0.02,null,null,0.02,0]
[null,0.03,null,null,0.03,0]
[null,0.04,null,null,0.04,0]
[null,0.05,null,null,0.05,0]
[null,0.06,null,null,0.06,0]
[null,7.0000000000000007E-2,null,null,7.0000000000000007E-2,0]
[null,0.08,null,null,0.08,0]
[null,0.09,null,null,0.09,0]
[null,0.1,null,null,0.1,0]
[null,0.11,null,null,0.11,0]